[Event "Swiss Championship U14 2022"]
[Site "Biel"]
[Date "2022.07.18"]
[Round "1.1"]
[White "Breyer, Thierry"]
[Black "Mattenberger, Matthias"]
[Result "0-1"]
[ECO "B90"]
[WhiteElo "1683"]
[BlackElo "2005"]
[Annotator "TA"]
[PlyCount "62"]
[EventDate "2022.07.18"]
[EventType "swiss"]
[EventCountry "SUI"]
[SourceTitle "playchess.com"]
[Source "ChessBase"]
[SourceQuality "1"]
[TimeControl "5400+30"]

{[%evp 24,62,0,1,44,49,39,43,91,-3,88,26,114,13,0,1,158,-57,-62,-49,-61,-52,-60,-480,-460,-448,-251,-898,-891,-883,-870,-1418,-1382,-1410,-1387,-1346,-1308,-29995,-29995,-29995,-29996]} 1. e4 {[%emt 0:00:01]} c5 {[%emt 0:00:12]} 2. Nf3 {[%emt 0:00:10]} d6 {[%emt 0:00:12]} 3. d4 {[%emt 0:00:08]} cxd4 {[%emt 0:00:05]} 4. Nxd4 {[%emt 0:00:32]} Nf6 {[%emt 0:00:09]} 5. Nc3 {[%emt 0:00:08]} a6 {[%emt 0:00:07]} 6. Be3 {[%emt 0:00:19]} e5 {[%emt 0:00:09]} 7. Nb3 {[%emt 0:00:15]} Be7 {[%emt 0:00:06]} 8. Be2 {[%emt 0:00:51]} Be6 {[%emt 0:00:06]} 9. f3 {[%emt 0:00:39]} O-O {[%emt 0:06:07]} 10. Qd2 {[%emt 0:12:18]} Nbd7 {[%emt 0:04:06]} 11. Nd5 {[%emt 0:04:37]} Bxd5 {[%emt 0:11:36]} 12. exd5 {[%emt 0:00:09]} Rc8 {[%emt 0:04:15]} 13. c4 {[%emt 0:03:02]} Ne8 {[%emt 0:11:02] B90: Sicilian Najdorf: Unusual White 6th moves, 6 Be3 Ng4 and 6 Be3 e5.} 14. Na5 {[%emt 0:05:19]} Qc7 {[%emt 0:02:38] [#]} 15. Rc1 $146 {[%emt 0:06:23]} ({Predecessor:} 15. O-O f5 16. b4 Rf6 17. Rac1 b6 18. Nc6 Nb8 19. Nxe7+ Qxe7 20. Bg5 Nd7 21. Bxf6 Nexf6 {1-0 (56) Sanchez Alvares,K (2250)-Amir,K (2235) Chess.com INT 2021}) 15... f5 {[%emt 0:13:10]} (15... Bd8 $14 {is more appropriate.} 16. b4 h6) 16. b4 {[%emt 0:12:13]} (16. O-O $16) 16... Nef6 {[%emt 0:13:52]} (16... Bh4+ $1 $11 {keeps the balance.} 17. Kf1 f4) 17. g3 {[%emt 0:10:24]} ({White should try} 17. O-O $16) 17... f4 {[%emt 0:04:39]} (17... Nh5 $11) 18. Bf2 {[%emt 0:12:51]} (18. gxf4 $16 {0-0 is the strong threat.} exf4 19. Bxf4) 18... e4 $11 {[%emt 0:05:27] aiming for ...e3.} 19. gxf4 {[%emt 0:02:37] Hoping for Be3.} (19. Qxf4 Ne5 20. fxe4 Nfg4 $1 {[%mdl 512]} 21. Qxg4 Nxg4 22. Bxg4 Bg5 23. Be6+ Kh8 $15) 19... Rce8 $2 {[%emt 0:03:16]} (19... Nh5 $11 20. Be3 Bh4+ 21. Kd1 Ndf6) 20. Be3 $2 {[%emt 0:02:22]} ({Only move:} 20. O-O $16) 20... exf3 $1 $15 {[%emt 0:03:47]} 21. Bxf3 {[%emt 0:00:28] [#]} Ne4 $1 $36 {[%emt 0:01:28][%mdl 2048] Black has the initiative.} 22. Qg2 {[%emt 0:04:58]} Bh4+ {[%emt 0:07:03]} 23. Ke2 $2 {[%emt 0:04:50][%mdl 8192] White does not recover from this.} (23. Kd1 $15) 23... Nf2 $19 {[%emt 0:02:26] Pair of Knights!} (23... Ndf6 24. Kd1 $11) 24. Rhg1 {[%emt 0:00:39][%csl Gg1][%cal Rg2g7]} Rf7 {[%emt 0:00:39]} (24... g6 $142 {[%cal Oe8e3] And now ...Rxe3+! would win.} 25. Nb3 Rxf4) 25. Bh5 $2 {[%emt 0:07:36] [#]} (25. Rc3 Nf6 26. Rb3 (26. Kf1 $2 Rfe7 $19)) 25... Rxe3+ $1 {[%emt 0:00:42][%mdl 576] Decoy} 26. Kxe3 {[%emt 0:00:16]} Qb6+ {[%emt 0:00:50]} ({Weaker is} 26... g6 {[#]} 27. Bxg6 $1 {[%mdl 512]} hxg6 28. Qxg6+ Kf8 29. Qh6+ Ke8 30. Qxh4 $18) 27. c5 {[%emt 0:06:05]} Re7+ {[%emt 0:00:07]} 28. Kf3 {[%emt 0:02:00]} Qxb4 {[%emt 0:00:38][%csl Ge7,Gf2][%cal Rb4e4]} 29. Nc4 {[%emt 0:00:36]} Qxc5 {[%emt 0:00:59][%cal Rc5d5]} 30. Ne5 {[%emt 0:02:03]} Qa3+ {[%emt 0:01:48]} 31. Ke2 {[%emt 0:00:18]} Qd3+ {[%emt 0:00:12] Weighted Error Value: White=1.57/Black=0.39} 0-1

[Event "Swiss Championship U14 2022"]
[Site "Biel"]
[Date "2022.07.18"]
[Round "1.2"]
[White "Arsenie, Cristian Marc"]
[Black "Bruessow, Nina"]
[Result "1-0"]
[ECO "B23"]
[WhiteElo "2001"]
[BlackElo "1655"]
[Annotator "TA"]
[PlyCount "63"]
[EventDate "2022.07.18"]
[EventType "swiss"]
[EventCountry "SUI"]
[SourceTitle "playchess.com"]
[Source "ChessBase"]
[SourceQuality "1"]
[TimeControl "5400+30"]

{[%evp 9,63,-8,7,-14,36,30,45,38,72,39,22,65,62,12,111,97,89,89,93,94,80,85,103,105,102,86,145,38,89,97,81,93,71,93,78,33,71,45,143,143,139,139,285,126,242,93,102,93,271,279,272,273,303,281,280,252]} 1. e4 {[%emt 0:00:02]} c5 {[%emt 0:00:04]} 2. Nc3 {[%emt 0:00:13]} d6 {[%emt 0:00:07]} 3. d4 {[%emt 0:00:05]} cxd4 {[%emt 0:00:08]} 4. Qxd4 {[%emt 0:00:05]} a6 {[%emt 0:00:29]} 5. b3 {[%emt 0:00:22]} Nc6 {[%emt 0:00:13]} 6. Qd2 {[%emt 0:00:16] B23: Closed Sicilian: Lines without g3.} g6 {[%emt 0:01:25]} ({Black should try} 6... b5 $11) 7. Bb2 $14 {[%emt 0:00:44]} Bg7 {[%emt 0:00:26]} 8. O-O-O {[%emt 0:04:04] White is slightly better.} b5 {[%emt 0:04:47]} 9. Kb1 {[%emt 0:16:46]} (9. Nd5 $5 {[%cal Rb2g7]} Nf6 10. Nxf6+ Bxf6 11. Bxf6 exf6 12. Ne2 $16 (12. Qxd6 Bb7 $14)) 9... Nf6 {[%emt 0:01:26]} 10. f3 {[%emt 0:04:26]} O-O {[%emt 0:04:28]} 11. Nge2 {[%emt 0:00:31] [#]} ({White should play} 11. Nd5 $14) 11... Qb6 $146 {[%emt 0:03:00]} (11... Ne5 $11 {remains equal.}) ({Predecessor:} 11... b4 12. Nd5 Nxd5 13. Bxg7 Kxg7 14. exd5 Ne5 15. Qxb4 a5 16. Qd4 f6 17. a4 Rb8 {0-1 (43) Nasuta,G (2535)-Galopoulos,N (2360) Tornelo INT 2020}) 12. Nd5 {[%emt 0:04:25]} Nxd5 {[%emt 0:00:23]} 13. Bxg7 {[%emt 0:00:15]} (13. exd5 $6 Bxb2 14. Kxb2 Ne5 $11) ({Reject} 13. Qxd5 Be6 14. Qd2 Bxb2 15. Kxb2 a5 $15) 13... Kxg7 {[%emt 0:00:45]} 14. exd5 {[%emt 0:00:07]} Ne5 {[%emt 0:01:34]} 15. h4 {[%emt 0:01:59]} h5 {[%emt 0:05:35]} 16. Nd4 $1 {[%emt 0:02:50][%cal Og2g4]} Bd7 {[%emt 0:05:48] Against g4} 17. Be2 {[%emt 0:02:40]} Rh8 {[%emt 0:06:58]} (17... Rac8 $142) 18. Qg5 {[%emt 0:06:39]} (18. f4 $16) 18... f6 {[%emt 0:05:24]} (18... Qc5 $14) 19. Qe3 $16 {[%emt 0:00:37]} Kf7 {[%emt 0:05:20] Prevents Ne6.} 20. Rhe1 {[%emt 0:09:28]} Rae8 {[%emt 0:04:44]} 21. Qe4 {[%emt 0:04:38]} Qc5 {[%emt 0:09:54]} 22. f4 {[%emt 0:09:45] Threatens to win with Ne6.} (22. g3 $5 {[%cal Rf3f4]}) 22... Ng4 {[%emt 0:01:37]} 23. Bxg4 {[%emt 0:00:48]} ({But not} 23. Bd3 $2 f5 24. Qe2 Qxd4 $19) 23... Bxg4 {[%emt 0:01:38] [#]} (23... hxg4 $14 24. g3 f5) 24. Rd3 $1 {[%emt 0:01:32][%cal Bd1d3,Bd3e3,Be3c3,Bc3c7][%mdl 32]} Qc8 {[%emt 0:06:38] [#]} 25. Rde3 $1 {[%emt 0:05:09] Black must now prevent Nc6.} Rhg8 {[%emt 0:07:28]} (25... Qd7 $16 26. f5 Bxf5 27. Nxf5 gxf5) 26. Qd3 {[%emt 0:03:30]} (26. Nc6 $18) 26... Rg7 {[%emt 0:04:31]} (26... Kf8 $16 {might work better.} 27. g3 Qd7) 27. Ne6 {[%emt 0:01:25]} (27. Nc6 $18 {and the rest is easy.}) 27... Rgg8 {[%emt 0:00:40]} 28. Qd4 {[%emt 0:01:25] Strongly threatening Qa7. White is much more active.} Bf5 $2 {[%emt 0:02:33]} (28... Qb7 $16 {was called for.}) 29. Rc3 $18 {[%emt 0:01:18] White has a decisive advantage.} Qb8 {[%emt 0:00:54]} 30. Rc7 {[%emt 0:03:00]} Bxe6 {[%emt 0:05:07]} 31. dxe6+ {[%emt 0:00:08]} Kg7 {[%emt 0:00:29]} 32. Qxd6 $1 {[%emt 0:03:47] Weighted Error Value: White=0.24 (precise) /Black=0.39} 1-0

[Event "Swiss Championship U14 2022"]
[Site "Biel"]
[Date "2022.07.18"]
[Round "1.3"]
[White "Artan, Tamir"]
[Black "Malli, Suvirr"]
[Result "0-1"]
[ECO "B94"]
[WhiteElo "1590"]
[BlackElo "1957"]
[Annotator "TA"]
[PlyCount "88"]
[EventDate "2022.07.18"]
[EventType "swiss"]
[EventCountry "SUI"]
[SourceTitle "playchess.com"]
[Source "ChessBase"]
[SourceQuality "1"]
[TimeControl "5400+30"]

{[%evp 12,88,18,-7,0,0,0,0,0,-23,-29,-32,-14,-12,0,0,0,-12,-9,-41,-4,-2,0,0,0,-43,-3,-53,-55,-33,-41,-34,0,0,0,-45,0,-57,-19,-145,-114,-101,-89,-153,-151,-214,-174,-297,-292,-300,-316,-647,-642,-733,-716,-700,-594,-800,-789,-1549,-1494,-1152,-1122,-1050,-1039,-5011,-1189,-1291,-1278,-29982,-29983,-29984,-29983,-29994,-29995,-29997,-29998,-29998,-29999]} 1. e4 {[%emt 0:00:01]} c5 {[%emt 0:00:08]} 2. Nf3 {[%emt 0:00:03]} d6 {[%emt 0:00:12]} 3. d4 {[%emt 0:00:03]} cxd4 {[%emt 0:00:09]} 4. Nxd4 {[%emt 0:00:03]} Nf6 {[%emt 0:00:20]} 5. Nc3 {[%emt 0:00:04]} a6 {[%emt 0:00:10]} 6. Bg5 {[%emt 0:00:20]} Nbd7 {[%emt 0:00:19]} 7. Qd2 {[%emt 0:02:20] 7.Qe2 is the modern continuation.} h6 {[%emt 0:04:16] B94: Sicilian Najdorf: 6 Bg5 Nbd7.} 8. Bxf6 {[%emt 0:01:24]} Nxf6 {[%emt 0:01:16]} 9. O-O-O {[%emt 0:02:11]} e5 {[%emt 0:06:47] The position is equal.} 10. Nb3 {[%emt 0:01:34] [#]} Be7 $146 {[%emt 0:01:07]} ({Predecessor:} 10... Be6 11. Qe3 Be7 12. Kb1 Rc8 13. g3 Qc7 14. Be2 O-O 15. f4 b5 16. Rd2 b4 {1-0 (36) Fries,K (1661)-Reichel,H (1365) Bad Sooden-Allendorf 2006}) 11. Kb1 {[%emt 0:02:24]} Be6 {[%emt 0:01:48]} 12. f3 {[%emt 0:01:23]} h5 {[%emt 0:00:50]} 13. Be2 {[%emt 0:01:32]} Rc8 {[%emt 0:01:38]} 14. Nd5 {[%emt 0:08:00]} Nxd5 {[%emt 0:01:47]} 15. exd5 {[%emt 0:00:39]} Bf5 {[%emt 0:00:07]} 16. Bd3 {[%emt 0:00:14]} Bxd3 {[%emt 0:00:31]} 17. Qxd3 {[%emt 0:00:08]} Qc7 {[%emt 0:06:55]} 18. Rdf1 {[%emt 0:09:58]} O-O {[%emt 0:10:58]} 19. g4 {[%emt 0:02:21]} (19. f4 $11) 19... hxg4 $15 {[%emt 0:01:33]} 20. fxg4 {[%emt 0:00:27]} Qc4 {[%emt 0:00:39]} 21. Qd1 {[%emt 0:12:00]} Bg5 {[%emt 0:04:16]} 22. h4 {[%emt 0:01:09]} Bf4 {[%emt 0:00:41]} 23. g5 {[%emt 0:06:09]} b6 {[%emt 0:07:50]} 24. Rfg1 {[%emt 0:05:30]} (24. Rf3 $11) 24... a5 {[%emt 0:04:39]} 25. g6 {[%emt 0:01:24]} (25. Rg4 $11) 25... f6 {[%emt 0:11:23][%cal Bf7f6,Bf6f5,Bf5g4][%mdl 32] Black is more active.} 26. Rh3 {[%emt 0:03:42] [#]} Bh6 $1 {[%emt 0:02:03]} 27. Rg4 {[%emt 0:06:19]} ({White should play} 27. Rc3 Qe4 28. Qd3 Qxd3 29. cxd3) 27... Qb5 $17 {[%emt 0:01:41]} 28. a4 {[%emt 0:03:15]} (28. Rg1 $17) 28... Qd7 {[%emt 0:00:16]} 29. Rh1 {[%emt 0:00:35]} (29. Qe2 $142) 29... f5 $19 {[%emt 0:00:58]} 30. Rg5 {[%emt 0:02:18]} Qxa4 {[%emt 0:00:35]} (30... Bxg5 $2 31. hxg5 Rf7 32. Qh5 $18) 31. Rh5 $2 {[%emt 0:01:25]} (31. Rgg1) 31... Qg4 {[%emt 0:03:34]} 32. Qxg4 {[%emt 0:02:09]} fxg4 {[%emt 0:00:08]} 33. Rg1 {[%emt 0:00:18]} Rf4 {[%emt 0:00:23]} 34. Nc1 {[%emt 0:00:51]} Rcf8 {[%emt 0:00:30]} 35. b3 {[%emt 0:01:19]} Rf1 {[%emt 0:00:12]} 36. Rxg4 {[%emt 0:04:36]} Rxc1+ {[%emt 0:01:21]} 37. Kb2 {[%emt 0:00:08]} Rd1 {[%emt 0:00:37]} 38. Rc4 {[%emt 0:00:23]} Rxd5 {[%emt 0:00:59] Hoping for ...b5.} 39. Rc6 {[%emt 0:00:34]} b5 {[%emt 0:00:12][%cal Bb6b5,Bb5b4][%mdl 32] [#] ...b4 is the strong threat.} 40. Ra6 {[%emt 0:00:18]} b4 {[%emt 0:00:16] Black mates.} 41. Ra7 {[%emt 0:01:05]} Rd1 {[%emt 0:01:56]} 42. Rxa5 {[%emt 0:00:20]} Bd2 {[%emt 0:00:11]} 43. c4 {[%emt 0:00:46]} Bc3+ {[%emt 0:00:08]} 44. Kc2 {[%emt 0:00:09]} Rd2+ {[%emt 0:00:04] Weighted Error Value: White=0.87/Black=0.33} 0-1

[Event "Swiss Championship U14 2022"]
[Site "Biel"]
[Date "2022.07.18"]
[Round "1.4"]
[White "Scherler, Julius"]
[Black "Stoll, Arturo"]
[Result "1-0"]
[ECO "B31"]
[WhiteElo "1971"]
[BlackElo "1434"]
[Annotator "TA"]
[PlyCount "65"]
[EventDate "2022.07.18"]
[EventType "swiss"]
[EventCountry "SUI"]
[SourceTitle "playchess.com"]
[Source "ChessBase"]
[SourceQuality "1"]
[TimeControl "5400+30"]

{[%evp 15,65,30,14,14,27,20,34,0,37,0,0,-31,-31,-18,-9,-20,-25,-62,0,-8,15,18,11,12,37,-34,63,50,98,98,194,198,184,151,227,208,279,244,367,372,352,348,830,821,775,778,29986,5875,29983,2415,1668,1156]} 1. e4 {[%emt 0:00:33]} c5 {[%emt 0:00:23]} 2. Nf3 {[%emt 0:00:23]} Nc6 {[%emt 0:00:26]} 3. Bb5 {[%emt 0:01:15]} g6 {[%emt 0:01:03]} 4. Bxc6 {[%emt 0:00:35]} dxc6 {[%emt 0:00:13]} 5. O-O {[%emt 0:02:25]} Bg7 {[%emt 0:02:33]} 6. d3 {[%emt 0:08:47]} e5 {[%emt 0:07:55]} 7. h3 {[%emt 0:00:00]} Ne7 {[%emt 0:01:06]} 8. Be3 {[%emt 0:12:03] 8.a3 might become the main line.} b6 {[%emt 0:03:15]} 9. Qd2 {[%emt 0:00:39] B31: Sicilian: 2...Nc6 3 Bb5 g6.} O-O {[%emt 0:03:35]} 10. Nc3 {[%emt 0:16:35]} Qc7 {[%emt 0:10:35] [#]} 11. Nh2 $146 {[%emt 0:17:22] White is slightly better.} ({Predecessor:} 11. a3 f5 12. exf5 gxf5 13. Bh6 Ng6 14. Rae1 Bd7 15. Bxg7 Kxg7 16. Re3 Rae8 17. Rfe1 {0-1 (32) Movsesian,J (2300)-Wikar,M (2168) Warsaw 2021}) 11... Be6 {[%emt 0:04:37]} 12. b3 {[%emt 0:00:00]} f5 {[%emt 0:10:09] Hoping for ...f4.} 13. exf5 {[%emt 0:05:53]} gxf5 {[%emt 0:00:00] [#] ...f4 is the strong threat.} 14. Bh6 {[%emt 0:00:00]} Nd5 {[%emt 0:00:00]} 15. Nxd5 {[%emt 0:06:17]} cxd5 {[%emt 0:00:00]} 16. Nf3 {[%emt 0:00:00][%cal Bh2f3,Bf3g5,Bg5e6][%mdl 32]} e4 {[%emt 0:08:14]} ({Black should play} 16... f4 $15 17. Bxg7 Qxg7) 17. Ng5 {[%emt 0:03:52]} Qe7 {[%emt 0:00:00]} (17... Rae8 $5 {[%cal Rg7h6]} 18. Bxg7 Qxg7 $11) 18. Bxg7 {[%emt 0:03:11]} Kxg7 {[%emt 0:00:00]} 19. dxe4 {[%emt 0:04:12]} fxe4 {[%emt 0:00:00]} 20. Qc3+ {[%emt 0:02:06]} ({Better is} 20. c4 $14) 20... d4 {[%emt 0:00:00]} ({Black should try} 20... Rf6 $15 21. Qg3 (21. Nxe6+ Qxe6 22. b4 d4 $15) 21... Rg6 22. Qe5+ (22. Nxe6+ Qxe6 23. Qh2 Rf8 $17) 22... Kf8 23. Nxe6+ Qxe6 24. Qh8+ Qg8 25. Qxg8+ (25. Qe5 Re8 $17) 25... Kxg8) 21. Qg3 $14 {[%emt 0:03:34]} Bf5 {[%emt 0:00:25]} (21... Kh8 $14 {is superior.}) 22. Ne6+ $16 {[%emt 0:00:48]} Kf7 {[%emt 0:01:41]} (22... Kh8 $16 23. Nxf8 Rxf8) 23. Nxf8 $18 {[%emt 0:01:16]} Rxf8 {[%emt 0:00:00]} 24. Rae1 {[%emt 0:04:37]} Qf6 {[%emt 0:00:55]} (24... Rg8 $16 25. Qh2 (25. Qf4 Qg5 $16) 25... Kg7) 25. Qc7+ {[%emt 0:01:03]} Ke8 {[%emt 0:00:14]} 26. Qb8+ {[%emt 0:01:37]} Kd7 {[%emt 0:02:40]} (26... Kf7 {was worth a try.} 27. Qxa7+ Kg8) 27. Qxa7+ {[%emt 0:01:36]} Kc6 {[%emt 0:02:01][%cal Of5h3]} 28. b4 {[%emt 0:05:19][%cal Bb3b4,Bb4b5][%mdl 32]} Bxh3 $2 {[%emt 0:01:52] [#]} (28... cxb4 29. Rb1 Rg8) 29. b5+ {[%emt 0:01:40]} (29. gxh3 Rg8+ 30. Kh2 Qf4+ 31. Kh1 Qf3+ 32. Kh2 Qg2#) 29... Kd5 {[%emt 0:01:14]} 30. c4+ {[%emt 0:02:06]} (30. gxh3 {leads to mate.} Rg8+ 31. Kh2 Qf4+ 32. Kh1 Qf3+ 33. Kh2 Qg2#) 30... dxc3 {[%emt 0:00:10]} 31. Rd1+ {[%emt 0:01:45]} (31. Qb7+ $142 Kc4 32. Rxe4+ Qd4 33. Rxd4+ Kxd4 34. gxh3 h5 35. Rd1+ Kc4 36. Qd5+ Kxb5 37. a4+ Kb4 38. Rb1+ Ka5 39. Qb3 Rg8+ 40. Qxg8 b5 41. Rxb5+ Kxa4 42. Qb3#) 31... Ke5 {[%emt 0:04:00]} 32. Qc7+ {[%emt 0:00:00]} (32. f4+ $142 exf3 33. Rxf3 Qxf3 34. Qe7+ Be6 35. Qd6+ Ke4 36. Qxe6+ Kf4 37. gxf3) 32... Kf5 {[%emt 0:00:19]} 33. Qd7+ {[%emt 0:00:00] Weighted Error Value: White=0.22 (precise) /Black=1.13} 1-0

[Event "Swiss Championship U14 2022"]
[Site "Biel"]
[Date "2022.07.18"]
[Round "1.5"]
[White "Haas, Anthony"]
[Black "Gut, Lionel"]
[Result "0-1"]
[ECO "D85"]
[WhiteElo "1638"]
[BlackElo "1957"]
[Annotator "TA"]
[PlyCount "100"]
[EventDate "2022.07.18"]
[EventType "swiss"]
[EventCountry "SUI"]
[SourceTitle "playchess.com"]
[Source "ChessBase"]
[SourceQuality "1"]
[TimeControl "5400+30"]

{[%evp 16,100,11,15,27,-10,-12,-18,-21,-23,-14,-17,-17,-19,-29,-25,-16,-39,-40,-56,-51,-82,-46,-75,-85,-292,-275,-289,-288,-270,-267,-282,-260,-262,-258,-274,-255,-307,-300,-357,-356,-352,-347,-357,-362,-383,-383,-519,-512,-531,-510,-497,-475,-845,-370,-746,-714,-12841,-12842,-12841,-12842,-29981,-29982,-29982,-29983,-29983,-4683,-29982,-29983,-12840,-1560,-29983,-1542,-29986,-29987,-29987,-29988,-29988,-29988,-29989,-29990,-29990,-29991,-29992,-29993,-29993,-29994]} 1. d4 {[%emt 0:00:03]} Nf6 {[%emt 0:00:07]} 2. c4 {[%emt 0:00:29]} g6 {[%emt 0:00:06]} 3. Nc3 {[%emt 0:00:14]} d5 {[%emt 0:00:11]} 4. cxd5 {[%emt 0:01:20]} Nxd5 {[%emt 0:00:09]} 5. e4 {[%emt 0:00:12]} Nxc3 {[%emt 0:00:32]} 6. bxc3 {[%emt 0:00:03]} Bg7 {[%emt 0:00:34]} 7. Be3 {[%emt 0:03:30]} c5 {[%emt 0:01:29]} 8. Rc1 {[%emt 0:04:49]} Qa5 {[%emt 0:00:30]} 9. Qd2 {[%emt 0:01:45]} Nc6 {[%emt 0:10:28] D85: Exchange Grünfeld: Unusual White 7th moves and lines with 7 Nf3.} 10. Ne2 {[%emt 0:16:12] [#]} cxd4 $146 {[%emt 0:00:49]} ({Predecessor:} 10... O-O 11. d5 Ne5 12. Ng3 Bg4 13. f4 Nd7 14. h3 Bh5 15. Nxh5 gxh5 16. c4 Qxd2+ 17. Kxd2 {½-½ (36) Nawrot,E-Lorenz,N (1761) Wroclaw 2005}) 11. cxd4 {[%emt 0:01:54]} Qxd2+ {[%emt 0:00:42] The position is equal.} 12. Kxd2 {[%emt 0:01:29]} O-O {[%emt 0:07:38]} 13. d5 {[%emt 0:18:52]} Rd8 {[%emt 0:03:06]} 14. Nc3 {[%emt 0:04:06]} e6 {[%emt 0:13:32]} 15. Bg5 {[%emt 0:07:46] Prevents Ne7.} f6 {[%emt 0:06:15]} 16. Bf4 {[%emt 0:01:39]} exd5 {[%emt 0:03:47]} 17. Nxd5 {[%emt 0:06:53]} Be6 {[%emt 0:14:45]} 18. Bc4 {[%emt 0:02:26]} Na5 {[%emt 0:01:11]} 19. Ke2 {[%emt 0:09:12][%cal Od5f6] Black must now prevent Nxf6+!} Nxc4 {[%emt 0:01:05]} 20. Nc7 {[%emt 0:00:40] [#] This move loses the game for White.} (20. Rxc4 $17 {only move.} Bxd5 21. exd5) 20... Bf7 $1 $19 {[%emt 0:01:32]} 21. Nxa8 {[%emt 0:00:49]} Rxa8 {[%emt 0:00:01]} 22. Rhd1 {[%emt 0:01:03]} Re8 {[%emt 0:06:47]} 23. Kf3 {[%emt 0:04:00]} g5 {[%emt 0:00:18]} 24. Bc7 {[%emt 0:02:47]} h5 {[%emt 0:04:38]} 25. Rd8 {[%emt 0:02:02] Strongly threatening Rxe8+.} Ne5+ {[%emt 0:01:20]} 26. Ke2 {[%emt 0:00:54]} Bc4+ {[%emt 0:02:36]} 27. Ke3 {[%emt 0:02:08]} Rxd8 {[%emt 0:00:20]} 28. Bxd8 {[%emt 0:00:07]} b5 {[%emt 0:00:32]} ({Avoid the trap} 28... Bxa2 $2 29. Rc8 Kh7 30. Rc7 $17) 29. f3 {[%emt 0:00:42]} Kf7 {[%emt 0:00:38]} ({Stronger than} 29... Bxa2 30. Ra1 Bc4 31. Rxa7 $17) 30. Bc7 {[%emt 0:00:39]} Bf8 {[%emt 0:00:21]} 31. Bxe5 {[%emt 0:01:03]} fxe5 {[%emt 0:00:02]} 32. a4 {[%emt 0:00:15]} a6 {[%emt 0:00:30]} 33. axb5 {[%emt 0:01:00]} axb5 {[%emt 0:00:01] Hoping for ...Bc5+.} 34. Rb1 {[%emt 0:00:36]} (34. Kd2 $142 Bb4+ 35. Kc2) 34... Bc5+ {[%emt 0:00:31]} 35. Kd2 {[%emt 0:00:08]} Bd4 {[%emt 0:00:32]} 36. h3 {[%emt 0:00:27]} h4 {[%emt 0:00:01]} 37. Rc1 {[%emt 0:00:30]} Ke6 {[%emt 0:00:05] ( -> ...Kd6)} 38. Kc2 {[%emt 0:00:13]} Kd6 {[%emt 0:00:05]} 39. Rb1 {[%emt 0:00:38]} Kc5 {[%emt 0:00:04]} 40. Kd2 {[%emt 0:00:29]} Kb6 {[%emt 0:00:05]} (40... b4 $142 41. Kc2 Ba2 42. Rh1 b3+ 43. Kd2 b2 44. Kc2 Kb4 45. Re1 Bb3+ 46. Kd3 Bc4+ 47. Kc2 Ka3 48. Rh1 Ka2 49. Re1 Bb3+ 50. Kd2 b1=Q 51. Rxb1 Kxb1 52. Kd3 Kc1 53. f4 gxf4 54. Ke2 Bc2 55. g4 fxg3 56. Kf3 Bd1+ 57. Kg2 Be2 58. Kh1 Bf3#) 41. Kc2 {[%emt 0:00:19]} Ka5 {[%emt 0:00:02]} 42. Kd2 {[%emt 0:00:21]} Ka4 {[%emt 0:00:04]} (42... b4 $142 43. Rc1 Kb5) 43. Kc2 {[%emt 0:00:29]} Ka3 {[%emt 0:00:09]} (43... b4 $142 44. Kd2 b3 45. Rh1 Ka3 46. Re1 Ka2 47. Rc1 {[#]} b2 $1 48. Rxc4 b1=Q 49. Rc7 Qb4+ 50. Kd1 Qb3+ 51. Kd2 Qe3+ 52. Kd1 Qd3+ 53. Ke1 Be3 54. Ra7+ Bxa7 55. f4 gxf4 56. g4 hxg3 57. h4 Bf2#) 44. Re1 {[%emt 0:00:48]} b4 {[%emt 0:00:17] Black mates.} 45. Rb1 {[%emt 0:00:55]} b3+ {[%emt 0:00:06]} 46. Kd2 {[%emt 0:00:36]} Ka2 {[%emt 0:00:05]} 47. Rh1 {[%emt 0:00:32]} b2 {[%emt 0:00:09]} 48. Kc2 {[%emt 0:00:35]} Bb3+ {[%emt 0:00:09]} 49. Kd3 {[%emt 0:00:24]} b1=Q+ {[%emt 0:00:03]} 50. Rxb1 {[%emt 0:00:19]} Kxb1 {[%emt 0:00:02] Weighted Error Value: White=1.08/Black=0.53} 0-1

[Event "Swiss Championship U14 2022"]
[Site "Biel"]
[Date "2022.07.18"]
[Round "1.6"]
[White "Gut, Raphael"]
[Black "Guyer, Marlon"]
[Result "1/2-1/2"]
[ECO "E36"]
[WhiteElo "1898"]
[BlackElo "1590"]
[Annotator "NA COMBH"]
[PlyCount "59"]
[EventDate "2022.07.18"]
[EventType "swiss"]
[EventCountry "SUI"]
[SourceTitle "playchess.com"]
[Source "ChessBase"]
[SourceQuality "1"]
[TimeControl "5400+30"]

1. d4 {[%emt 0:00:04]} Nf6 {[%emt 0:00:05]} 2. c4 {[%emt 0:00:07]} e6 {[%emt 0:00:05]} 3. Nc3 {[%emt 0:00:04]} Bb4 {[%emt 0:00:06]} 4. Qc2 {[%emt 0:00:04]} O-O {[%emt 0:00:11]} 5. a3 {[%emt 0:00:06]} Bxc3+ {[%emt 0:00:12]} 6. Qxc3 {[%emt 0:00:05]} d5 {[%emt 0:01:08]} 7. Bg5 {[%emt 0:00:35]} Nbd7 {[%emt 0:04:19]} 8. Nf3 {[%emt 0:06:05]} dxc4 {[%emt 0:13:45]} 9. Qxc4 {[%emt 0:01:22]} b6 {[%emt 0:09:46]} 10. e3 {[%emt 0:06:52]} Bb7 {[%emt 0:18:04]} 11. Be2 {[%emt 0:03:06]} c5 {[%emt 0:04:23]} 12. O-O {[%emt 0:07:09]} cxd4 {[%emt 0:05:24]} 13. exd4 {[%emt 0:02:05]} h6 {[%emt 0:04:52]} 14. Bh4 {[%emt 0:00:24]} Qc8 {[%emt 0:05:02]} 15. Qb3 {[%emt 0:14:17]} Bd5 {[%emt 0:01:25]} 16. Qd3 {[%emt 0:05:12]} Qb7 {[%emt 0:02:46]} 17. Rfc1 {[%emt 0:15:17]} Rac8 {[%emt 0:00:27]} 18. h3 {[%emt 0:13:21]} Rxc1+ {[%emt 0:02:52]} 19. Rxc1 {[%emt 0:00:07]} Rc8 {[%emt 0:00:31]} 20. Rxc8+ {[%emt 0:05:36]} Qxc8 {[%emt 0:00:07]} 21. Kh2 {[%emt 0:00:04]} Ne4 {[%emt 0:04:13]} 22. Ne5 {[%emt 0:05:48]} Nxe5 {[%emt 0:04:15]} 23. dxe5 {[%emt 0:00:02]} Qc1 {[%emt 0:05:59]} 24. Bf3 {[%emt 0:03:53]} Qf4+ {[%emt 0:06:59]} 25. g3 {[%emt 0:00:06]} Qxe5 {[%emt 0:04:03]} 26. Bxe4 {[%emt 0:05:13]} Qxe4 {[%emt 0:00:51]} 27. Qxe4 {[%emt 0:00:03]} Bxe4 {[%emt 0:00:13]} 28. Be7 {[%emt 0:00:03]} f5 {[%emt 0:00:37]} 29. f4 {[%emt 0:00:48]} Kf7 {[%emt 0:00:32]} 30. Bb4 {[%emt 0:00:15]} 1/2-1/2